Cogmind - Beta 16 @@@ ROGUE MODE // 2026.01.11 @ 11:17:04 Player: Artackni Result: Destroyed by C5-O15(R) with Subdweller Beam Cannon Performance ------------- Evolutions (0) 0 Regions Visited (2) 400 Robots Destroyed (19) 95 Value Destroyed (577) 577 Prototype IDs (0) 0 Alien Tech Used (0) 0 Bonus (-104) -104 TOTAL SCORE: 968 Bonus ------- Friendly Fire -104 Cogmind --------- Core Integrity 0/250 Matter 300/300 Energy 314/315 System Corruption 0% Temperature Cool (15) Movement Rolling (155) Ox5 Location -10/Subcaves Parts ------- > --- POWER (1) -------- Neutrino Core > --- PROPULSION (2) --- Myomer Leg Wheel > --- UTILITY (2) ------ Large Storage Unit Light Armor Plating > --- WEAPON (2) ------- Beamcaster Bore Cannon > --- INVENTORY (15) --- Light Ion Engine Light Angular Momentum Engine Light Treads Light Treads Spiked Treads Compact Wheel Improved Heat Sink Seismic Detector EM Pulse Gun Particle Cannon Particle Cannon Slug Cannon Datajack Mining Laser Makeshift Axe Peak State ------------ > --- POWER ------------ Neutrino Core > --- PROPULSION ------- Myomer Leg Compact Wheel > --- UTILITY ---------- Improved Heat Sink Large Storage Unit > --- WEAPON ----------- Beamcaster Bore Cannon > --- INVENTORY -------- Light Ion Engine Light Angular Momentum Engine Light Treads Light Treads Light Treads Wheel Seismic Detector Light Armor Plating EM Pulse Gun EM Pulse Gun Particle Cannon Particle Cannon Datajack Mining Laser [Rating: 30] Favorites ----------- Power Neutrino Core Engine Light Ion Engine Power Core Neutrino Core Propulsion Compact Wheel Treads Light Treads Leg Myomer Leg Wheel Compact Wheel Utility Large Storage Unit Device Improved Heat Sink Storage Large Storage Unit Protection Light Armor Plating Weapon EM Pulse Gun Energy Gun EM Pulse Gun Ballistic Cannon Bore Cannon Launcher Grenade Launcher Build | -11 -10 -10 ------- Run | Yrd Mat Sub Slots Evolved . | . . . Power . | . . . Propulsion . | . . . Utility . | . . . Weapon . | . . . Parts Attached 22 | 7 6 9 Power 3 | 1 1 1 Engine 2 | 1 1 . Core 1 | . . 1 Reactor . | . . . Propulsion 5 | 2 . 3 Treads 2 | 1 . 1 Leg 1 | . . 1 Wheel 2 | 1 . 1 Hover . | . . . Flight . | . . . Utility 6 | 2 2 2 Device 2 | 1 . 1 Storage 2 | 1 1 . Processor . | . . . Hackware . | . . . Protection 2 | . 1 1 Artifact . | . . . Weapon 8 | 2 3 3 Energy Gun 6 | 2 3 1 Energy Cannon . | . . . Ballistic Gun . | . . . Ballistic Cannon 1 | . . 1 Launcher 1 | . . 1 Special Weapon . | . . . Impact Weapon . | . . . Slashing Weapon . | . . . Piercing Weapon . | . . . Special Melee Weapon . | . . . Unidentified Prototypes . | . . . Parts Lost 5 | . . 5 Power 1 | . . 1 Propulsion 1 | . . 1 Utility 1 | . . 1 Weapon 2 | . . 2 Highest Loss Streak 5 | . . 5 To Critical Strikes . | . . . Average Backups 12 | 4 11 13 Power 1 | . 1 1 Propulsion 3 | 2 3 3 Utility 1 | . 1 1 Weapon 4 | . 3 5 Tool/Special . | . . . Unused Backups 18 | . 3 15 Power 3 | . . 3 Propulsion 5 | . 2 3 Utility 2 | . . 2 Weapon 7 | . 1 6 Tool/Special 1 | . . 1 Average Slot Usage (%) 97 | . 98 96 Engine 4 | . 13 1 Core 8 | . . 12 Treads 4 | . 14 1 Leg 8 | . . 12 Wheel 13 | . 13 14 Device 3 | . 3 3 Storage 12 | . 14 12 Protection 9 | . 9 9 Energy Gun 18 | . 27 14 Ballistic Cannon 8 | . . 12 Peak Build Rating 30 | 7 8 30 Average Rating 20 | 5 7 26 On Entrance 5 | . 7 8 Avg Prop Armor Cover (%) 6 | 13 9 4 Naked Turns . | . . . Heaviest Build 51 | 12 30 51 Greatest Support 25 | 16 20 25 Greatest Overweight (x) 5 | . 1 5 Average Overweight (x) 2 | . . 3 Largest Inventory Capacity 15 | 8 15 15 Average Capacity 12 | 7 12 13 Most Carried 15 | 7 15 15 Average Carried 12 | 4 11 13 Final Capacity 15 | 8 15 15 Final Carried 15 | 7 15 15 Class Distribution -------------------- 61% | Scavenger-Mutant 38% | Mutant Dominant Class ---------------- Mutant | -10/Materials Scavenger-Mutant | -10/Subcaves Resources | -11 -10 -10 ----------- Run | Yrd Mat Sub Matter Collected 530 | 270 90 170 Remotely . | . . . Salvage Created 741 | 44 505 192 Parts 42 | 3 27 12 Haulers Intercepted 2 | . 2 . Recyclers Shooed 1 | . 1 . Parts Field Recycled . | . . . Retrieved Matter . | . . . Parts Self-Destructed 5 | . . 5 Prevented . | . . . Parts Restored . | . . . Kills | -11 -10 -10 ------- Run | Yrd Mat Sub Combat Hostiles Destroyed 15 | . 9 6 Guns 10 | . 9 1 Cannons 1 | . . 1 AOE 4 | . . 4 Classes Destroyed 4 | 1 2 1 Tunneler 2 | 2 . . Hauler 2 | . 2 . Grunt 9 | . 9 . Subdweller 6 | . . 6 Best Kill Streak 4 | 2 4 4 Combat Bots Only 4 | . 4 4 Max Kills in Single Turn 2 | 1 1 2 Gunslinging . | . . . Exploded 2 | . . 2 Melee . | . . . Uniques/NPCs Destroyed . | . . . Combat | -11 -10 -10 -------- Run | Yrd Mat Sub Hostile Shots Fired 56 | . 27 29 Missed 13 | . 5 8 Hits 43 | . 22 21 Projectile 43 | . 22 21 Critical Strikes 1 | . . 1 Damage Taken 976 | . 247 729 Core 255 | . 54 201 Absorbed by Shields . | . . . Core Remaining (%) 100 | 100 . . Volleys Fired 42 | 4 27 11 Largest 2 | 2 2 2 Hottest 123 | 80 80 123 Shots Fired 76 | 8 49 19 Gun 67 | 8 49 10 Cannon 5 | . . 5 Launcher 4 | . . 4 Special . | . . . Kinetic 5 | . . 5 Thermal 9 | 4 . 5 Explosive 4 | . . 4 Electromagnetic 58 | 4 49 5 Robot Hit Streak 9 | 3 9 5 Robot Miss Streak 2 | 2 2 2 Penetration Max . | . . . Secondary Targets 1 | . 1 . Max Gunslinging Chain 1 | . 1 . Shots Hit Robots 47 | 5 31 11 Core Hits 38 | 3 17 18 Critical Kills 1 | . . 1 Critical Parts Destroyed . | . . . Critical Strikes 1 | . . 1 Destroy 1 | . . 1 Melee Attacks . | . . . Impact . | . . . Slashing . | . . . Piercing . | . . . Sneak Attacks . | . . . Combat Hostiles . | . . . Follow-up Attacks . | . . . Damage Inflicted 1432 | 57 428 947 Guns 558 | 57 405 96 Cannons 36 | . . 36 Explosions 838 | . 23 815 Melee . | . . . Ramming . | . . . Kinetic 36 | . . 36 Thermal 129 | 21 23 85 Explosive 815 | . . 815 Electromagnetic 452 | 36 405 11 Impact . | . . . Slashing . | . . . Piercing . | . . . Highest Corruption . | . . . Average Corruption . | . . . Corruption Purged . | . . . Corruption Blocked . | . . . Overload Shots . | . . . Overflow Damage 1 | . . 1 Projectiles . | . . . Explosions 1 | . . 1 Melee . | . . . Knockbacks . | . . . Impact . | . . . Kinetic . | . . . Secondary . | . . . Self-Inflicted Damage 113 | . . 113 Shots 4 | . . 4 Rammed . | . . . Targets Rammed . | . . . Kicked . | . . . Crushed . | . . . Highest Temperature 284 | 54 284 245 Average Temperature 85 | 25 91 99 Received Heat Transfer 520 | . 144 376 Siege Activations . | . . . Martial Activations . | . . . Shielding Activations . | . . . Robots Disrupted . | . . . Combat Hostiles . | . . . Robots Corrupted . | . . . Combat Hostiles . | . . . Parts Fried 1 | . 1 . Impact Corruptions . | . . . Robots Melted . | . . . Combat Hostiles . | . . . Parts Melted 2 | . . 2 Heat Transferred 248 | 50 50 148 Parts Sabotaged . | . . . Parts Stolen . | . . . Parts Stripped . | . . . Power Chain Reactions 1 | . 1 . Alert | -11 -10 -10 ------- Run | Yrd Mat Sub Maximum Alert Level . | . . . Low Security (%) 100 | 100 100 . Level 1 . | . . . Level 2 . | . . . Level 3 . | . . . Level 4 . | . . . Level 5 . | . . . High Security . | . . . Max Security . | . . . Peak Influence 126 | 5 126 . Initial . | . . . Average 58 | 1 70 . Influence Increases 373 | 10 258 105 Destroy 0b10 Robot/C 180 | . 180 . Destroy 0b10 Robot/NC 20 | 10 10 . Destroy Leader 54 | . 54 . Successful Hack 12 | . 12 . Destroy Structure 2 | . 2 . Lose Combat Pursuer 105 | . . 105 Influence Decreases 334 | 10 176 148 Entered New Map 40 | . . 40 Time Decay 282 | 10 176 96 Lost Part 12 | . . 12 Squads Dispatched 4 | . 4 . Investigation 2 | . 2 . Extermination . | . . . Reinforcement 2 | . 2 . Assault . | . . . Garrison . | . . . Intercept . | . . . Searches Triggered . | . . . Construction Impeded . | . . . Haulers Reinforced . | . . . Active Scanning Responses . | . . . Cargo Convoy Interrupts . | . . . Stealth | -11 -10 -10 --------- Run | Yrd Mat Sub Distress Signals 1 | . 1 . Communications Jammed . | . . . Distress Signals . | . . . Times Spotted 38 | . 18 20 Peak Tracking Total 8 | . 7 8 Tactical Retreats 4 | . . 4 Traps | -11 -10 -10 ------- Run | Yrd Mat Sub Traps Triggered 5 | . 2 3 Indirectly . | . . . Trap Hack Attempts . | . . . Triggered . | . . . Disarmed . | . . . Reprogrammed . | . . . Reused . | . . . Traps Extracted . | . . . Installed . | . . . Triggered . | . . . Machines | -11 -10 -10 ---------- Run | Yrd Mat Sub Machines Disabled . | . . . Max in Single Turn . | . . . Machines Repaired . | . . . Machines Dismantled . | . . . Machines Sabotaged . | . . . Overloaded Fab Kills . | . . . Hacking | -11 -10 -10 --------- Run | Yrd Mat Sub Machines Accessed 2 | . 2 . Terminals 2 | . 2 . Fabricators . | . . . Repair Stations . | . . . Recycling Units . | . . . Scanalyzers . | . . . Garrison Access . | . . . Total Hacks 7 | . 7 . Successful 2 | . 2 . Failed 5 | . 5 . Catastrophic 1 | . 1 . Database Lockouts . | . . . Manual 4 | . 4 . Terminals 7 | . 7 . Fabricators . | . . . Repair Stations . | . . . Recycling Units . | . . . Scanalyzers . | . . . Garrison Access . | . . . Terminal Hacks . | . . . Fabricator Hacks . | . . . Repair Station Hacks . | . . . Recycling Unit Hacks . | . . . Scanalyzer . | . . . Garrison Access Hacks . | . . . Unauthorized Hacks 2 | . 2 . Terminals 2 | . 2 . Assimilate 1 | . 1 . Operators 1 | . 1 . Fabricators . | . . . Repair Stations . | . . . Recycling Units . | . . . Scanalyzers . | . . . Garrison Access . | . . . Data Cores Recovered . | . . . Used . | . . . Hacking Detections 2 | . 2 . Full Trace Events 1 | . 1 . Feedback Events . | . . . Feedback Blocked . | . . . Robot Schematics Acquired . | . . . Robots Built . | . . . Authchips . | . . . Time . | . . . Total Robot Build Rating . | . . . Part Schematics Acquired . | . . . Parts Built . | . . . Authchips . | . . . Time . | . . . Total Part Build Rating . | . . . Part Studies Acquired . | . . . Parts Repaired . | . . . Time . | . . . Parts Recycled . | . . . Recycled Matter . | . . . Retrieved Matter . | . . . Retrieved Components . | . . . Parts Scanalyzed . | . . . Part Schematics Acquired . | . . . Parts Damaged . | . . . Bothacking | -11 -10 -10 ------------ Run | Yrd Mat Sub Used RIF Installer . | . . . Robots Hacked . | . . . Non-combat . | . . . Combat . | . . . Robot Hacks Applied . | . . . Relay Couplers Released . | . . . Fabnet Peak Effective % . | . . . Robots Rewired . | . . . Allies Hacked . | . . . Hacks Repelled . | . . . Allies | -11 -10 -10 -------- Run | Yrd Mat Sub Total Allies . | . . . Largest Group . | . . . Highest-Rated Group . | . . . Highest-Rated Ally . | . . . Total Orders . | . . . Ally Attacks . | . . . Total Damage . | . . . Kills . | . . . Allies Corrupted . | . . . Allies Melted . | . . . Intel | -11 -10 -10 ------- Run | Yrd Mat Sub Active Infowar (turns) 138 | 24 114 . Seismic 138 | 24 114 . Robot Analysis Total . | . . . Derelict Logs Recovered 2 | . . 2 Drone Launches . | . . . Drone Recoveries . | . . . Exploration | -11 -10 -10 ------------- Run | Yrd Mat Sub Turns Passed 1695 | 97 458 1140 Spaces Moved 966 | 69 286 611 Core 1 | 1 . . Treads 1 | . 1 . Legs 260 | . . 260 Wheels 704 | 68 285 351 Hover . | . . . Flight . | . . . Fastest Speed 50 | 50 100 100 Average Speed 150 | 99 111 175 Slowest Speed 260 | 100 240 260 Overloaded Moves . | . . . Propulsion Burnouts . | . . . Robots Hopped . | . . . Potential Cave-ins . | . . . Cave-ins Triggered . | . . . Exploration Rate (%) 27 | 4 52 26 Regions Visited 2 Branch Regions 1 Pre-discovered Areas . | . . . Known Exits Taken . | . . . Unknown Exits Taken 2 | 1 1 . Scrap Searched 4 | . . 4 Spaces Dug . | . . . Terrain Destroyed 20 | . 2 18 Melee . | . . . Projectile 3 | . . 3 AOE 17 | . 2 15 Terrain Rammed . | . . . Walls Destroyed . | . . . Machines Disabled . | . . . Actions | -11 -10 -10 --------- Run | Yrd Mat Sub Total 1121 | 86 378 657 Wait 38 | . 38 . Move 964 | 68 285 611 Hop . | . . . Pick Up 32 | 7 11 14 Fast Attach 20 | 7 4 9 Attach 1 | . . 1 Detach 1 | . . 1 Swap 7 | . 5 2 Drop 16 | . 8 8 Fire 42 | 4 27 11 Melee . | . . . Ram . | . . . Kick . | . . . Crush . | . . . Escape Stasis . | . . . Rewire . | . . . Trap . | . . . Miscellaneous . | . . . Route ------- -11/Scrapyard -10/Materials (discovered 2 exits: [*Min] / [*Sub]) -10/Subcaves (discovered 1 exit: [*Rec]) History --------- Turn | Location | Event 37 | -11/Scrapyard | Discovered new exit (range 15) 98 | -11/Scrapyard | Entered Materials 311 | -10/Materials | Build established: Mutant 450 | -10/Materials | Discovered new exit (range 9) 545 | -10/Materials | Discovered new exit (range 10) 556 | -10/Materials | Entered Subcaves 557 | -10/Subcaves | Approached by a straggling Scientist 559 | -10/Subcaves | Learned 2 Materials zone layouts 622 | -10/Subcaves | Ambushed by swarm of Subdwellers 627 | -10/Subcaves | Ambushed by Subdwellers from Twisted Machinery 630 | -10/Subcaves | Ambushed by Subdwellers from Twisted Machinery 636 | -10/Subcaves | Core integrity fell below 50% 639 | -10/Subcaves | Core integrity fell below 20% 669 | -10/Subcaves | Lost 5 parts (1p1n1u2w) 673 | -10/Subcaves | Lost 3 allies 918 | -10/Subcaves | Disturbed a concealed Subdweller 967 | -10/Subcaves | Build established: Scavenger-Mutant 1007 | -10/Subcaves | Shifting Twisted Machinery released Flamer 1015 | -10/Subcaves | Shifting Twisted Machinery released Mak. Hammer 1104 | -10/Subcaves | Learned Materials garrison access intel 1418 | -10/Subcaves | A swath of the cavern ceiling suddenly collapsed 1586 | -10/Subcaves | Discovered new exit (range 16) 1696 | -10/Subcaves | Destroyed by C5-O15(R) with Subdweller Beam Cannon Last Messages --------------- Mak. Hammer falls loose from the Twisted Machinery. 01078_ HV Slug penetrates Wall. 01104_ Acquired derelict log, extracted data. Data stored: Materials garrison access intel. 01120_ Acquired 12 matter. 01240_ Dropped Lgt. Treads. 01243_ Acquired Spk. Treads. 01245_ Dropped Spk. Treads. 01245_ Acquired Spk. Treads. 01247_ Dropped Spk. Treads. 01248_ Acquired Spk. Treads. 01328_ Acquired 6 matter. A swath of the cavern ceiling suddenly collapses. 01572_ Acquired 6 matter. 01584_ Acquired 23 matter. 01586_ EXIT=FOUND 01587_ Subatomizers dissect the Sub. Optics. 01649_ Subatomizers dissect the Sub. Optics, destroying it. 01691_ Subatomizers dissect the Sub. Power Source. 01693_ Autobeam Turret destroyed. Map ----- +----------------------------------------------------+ | ????????????????????????????# ##?###?????? | | ????????????????????????????## % #?????????? | | ?????????????????????????????# #??#####??? | | ?????????????????????????????# ###?## ##?? | | ???????????????????????####?## #???# #?? | | ???????????????###?????#]%### ##???# #??? | | ??????????????## ###??#= #%#" #????# #???? | | ???? ##### ##?##%[[**! % #????# ##??? | | ???????# #?#][""#"= ###?### ##?? | | ???????# #?#%%## # ### #?? | | ?????????# ### ###### #?? | | ?????????## ??????# #### #?? | | ??????????????????## [%! ## # ##?? | | ???????????????????#" =** ###### ##??? | | ???????????????????# "######*R ## ## ### ##???? | | ????????????????? ## ????#R ########" #????? | | ??????????????""" ?? #??## ##????? | | ??????????????""" ?? "?##;% & ##?????? | | ?????????????? "? ?? ###;%% =!! #??????? | | ??????????????"?""? ?? # % # ##& * & ##?????? | | ??????????????? "? ??### ######[&&*= ##????? | | ??????????????????" ??#### %##### | ]|! ##???? | | ??????????????????""??#" % "# ### &!& #???? | | ??????????????????"???# # ##&[ * ##??? | | ??????????????????????# %% % #### * #??? | | ??????????????????????#" @ % "#??#### ## ##??? | | ??????????????????????#" " "#?#### ####???? | | ??????????????????????#""" """"#?# %## ##??????? | | ??????????????????????#####<#####?# %% #??????? | | ??????????????????????????###?????## % ######??? | | ???????????????????????????????????## #??? | | ???????????????????????????????????## ^ #??? | | ???????????????????????????????????# #??? | | ???????????????????????????????????# ^ ^ ## #??? | | ???????????????????????????????????# ###### #??? | | ???????????????????????????????????##?????# #??? | | ??????????????????????????????????????????# ^ #??? | | ??????????????????????????????????????????# #??? | | ??????????????????????????????????????????# ##?? | | ??????????????????????????????????????????# #?? | | ??????????????????????????????????????????# ###?? | | ?????????????????????????????????????????## #???? | | ???????????????????????????????????????### ##??? | | ???????????????????????????????????????# #??? | | ???????????????????????????????????????## ^ #??? | | ????????????????????????????????????????# ^ ##??? | | ????????????????????????????????????#??## ###???? | | ??????????????????????????????????### ## #?????? | | ??????????????????????????????????# %#?????? | | ??????????????????????????????????# #?????? | +----------------------------------------------------+ Best States ------------- Heat Dissipation 39 Energy Generation 19 Energy Capacity 315 Matter Stores 300 Matter Capacity 300 Sight Range 16 Terrain Scan Density 10 Armor Coverage 800 Evasion (%) 45 Recoil Reduction 1 Item Schematics ----------------- None Robot Schematics ------------------ None Fabricated ------------ Nothing Repaired ---------- Nothing Studied --------- None Alien Tech Used ----------------- None Achievements -------------- None Challenges ------------ None Game ------ Seed SigixSuspensionAnalyzer Manual? 0 Play Time 00:19:24 Cumulative 66.0 hours Start 2026.01.11 @ 09:13:27 End 2026.01.11 @ 11:17:04 Sessions 2 Manual Loads 0 Difficulty Rogue Special Mode None Game No. 26 Rogue 26 Adventurer 0 Explorer 0 Win Type - Total 1 Types 1/0/0/0/0/0/0/0/0/0 Lore% 35 Gallery% 43 Achievement% 36 Wizard Run 0 Options --------- Layout 0 ASCII 0 Keyboard 1 Movement Arrows Keybinds 0 Fullscreen 1 Font 18/SmallcapsGlow Map View 76x50 Zoom Use 0% Tactical HUD 1 Map Filters NONE Filters NONE Steam 1 RUN: 607bd24c-3eb6-4992-9ee3-8703b9bb8344